bitfinex/quotes_SOLUSD_20251001
["timestamp","ask_amount","ask_price","bid_price","bid_amount"]
[1759301422270,13.59559401,208.22,208.14,37.46]
[1759301422271,14.31559401,208.22,208.17,34.16]
[1759301422457,4.80330467,208.19,208.18,34.16]
[1759301422772,19.11889868,208.19,208.18,34.16]
[1759301423083,31.12716036,208.19,208.18,34.16]
[1759301424563,13.59559401,208.18,208.14,37.46]
[1759301424762,14.31559401,208.18,208.15,34.14]
[1759301425076,13.59559401,208.16,208.15,34.14]
[1759301425277,14.31559401,208.16,208.15,34.14]
[1759301426146,14.31559401,208.16,208.14,37.46]
[1759301426371,14.59991715,208.15,208.14,37.46]
[1759301426685,19.40414487,208.15,208.14,71.6]
[1759301427194,13.87991715,208.14,208.12,37.46]
[1759301427368,0.72,208.13,208.12,37.46]
[1759301428257,0.72,208.13,208.12,71.6]
[1759301428761,19.12028338,208.13,208.12,71.6]
[1759301428957,19.40460652,208.13,208.12,37.46]
[1759301429180,19.40460652,208.13,208.12,71.6]
[1759301429357,18.40028338,208.13,208.12,71.6]
[1759301429687,19.12028338,208.13,208.12,71.6]
[1759301430951,18.40028338,208.13,208.12,71.6]
[1759301431264,19.12028338,208.13,208.12,71.6]
[1759301431682,18.40028338,208.13,208.12,71.6]
[1759301432974,19.12028338,208.13,208.12,71.6]
[1759301433166,19.40460652,208.13,208.12,71.58]
[1759301433985,18.68460652,208.13,208.12,71.58]
[1759301434171,18.40028338,208.13,208.12,71.58]
[1759301436069,18.40028338,208.13,208.12,71.56]
[1759301436576,19.12028338,208.13,208.12,71.56]
[1759301436951,19.40460652,208.13,208.12,37.46]
[1759301437156,19.40460652,208.13,208.12,71.56]
[1759301437960,18.40028338,208.13,208.12,71.56]
[1759301439682,19.12028338,208.13,208.12,71.56]
[1759301440198,18.40028338,208.13,208.12,71.56]
[1759301441466,19.12028338,208.13,208.12,71.56]
[1759301441760,4.80468937,208.13,208.12,71.56]
[1759301441961,4.80468937,208.13,208.12,71.81]
[1759301442156,4.80468937,208.13,208.12,71.56]
[1759301443283,5.52468937,208.13,208.12,71.56]
[1759301443490,5.52468937,208.13,208.12,71.54]
[1759301443674,19.12028338,208.13,208.12,71.54]
[1759301444568,18.40028338,208.13,208.12,71.54]
[1759301447000,4.80468937,208.13,208.12,71.54]
[1759301447275,5.52468937,208.13,208.12,71.54]
[1759301447879,4.80468937,208.13,208.12,71.54]
[1759301449486,4.80445853,208.14,208.12,71.54]
[1759301449984,4.80445853,208.14,208.12,71.79]
[1759301450690,57.1,208.16,208.13,0.25]
[1759301450691,61.90409596,208.16,208.13,0.25]
[1759301450895,4.80409596,208.16,208.14,34.04]
[1759301451072,4.80409596,208.16,208.14,34.29]
[1759301451582,16.81275459,208.18,208.14,34.29]
[1759301452389,16.81275459,208.18,208.14,34.04]
[1759301453195,4.8035354,208.18,208.15,0.25]
[1759301453490,4.8035354,208.18,208.16,34.04]
[1759301456197,4.80330467,208.19,208.16,34.04]
[1759301456384,4.80330467,208.19,208.16,34.29]
[1759301456997,4.80330467,208.19,208.16,34.04]
[1759301457587,4.80330467,208.19,208.12,37.46]
[1759301457588,5.52330467,208.19,208.17,34.04]
[1759301457791,0.72,208.18,208.12,37.71]
[1759301458095,0.72,208.18,208.13,34.04]
[1759301458282,16.81318153,208.17,208.14,34.04]
[1759301458594,4.80376615,208.17,208.14,34.29]
[1759301458987,4.80376615,208.17,208.14,34.04]
[1759301460196,4.8035354,208.18,208.14,34.04]
[1759301462104,13.59559401,208.16,208.15,34.04]
[1759301462273,0.28432314,208.15,208.12,37.46]
[1759301462584,13.59559401,208.13,208.12,37.46]
[1759301462900,0.28432314,208.12,208.1,37.46]
[1759301463081,16.52986778,208.11,208.1,37.46]
[1759301463405,14.31559401,208.11,208.1,37.46]
[1759301463594,14.31559401,208.11,208.1,71.5]
[1759301463595,14.59991715,208.11,208.1,71.5]
[1759301464108,19.40506827,208.11,208.1,71.5]
[1759301466081,21.61934204,208.11,208.1,71.5]
[1759301466802,0.28432314,208.09,208.08,37.46]
[1759301466988,16.81419092,208.09,208.08,37.46]
[1759301467809,16.81419092,208.09,208.08,71.5]
[1759301468177,21.61980387,208.09,208.08,71.5]
[1759301468380,21.61980387,208.09,208.04,23.09583054]
[1759301468381,13.59559401,208.08,208.04,23.09583054]
[1759301468601,16.09419092,208.05,208.04,23.09583054]
[1759301468808,16.81419092,208.05,208.04,57.13583054]
[1759301469014,14.59991715,208.05,208.04,57.13583054]
[1759301470306,19.40645404,208.05,208.04,57.13583054]
[1759301470999,19.90645404,208.05,208.04,57.13583054]
[1759301471198,13.87991715,208.04,208.02,37.46]
[1759301471404,14.59991715,208.04,208.02,37.46]
[1759301471598,0.72,208.03,208.02,37.46]
[1759301472304,5.81132213,208.03,208.02,37.46]
[1759301472618,18.402593,208.03,208.02,71.5]
[1759301473586,18.402593,208.03,208.02,37.46]
[1759301473820,18.402593,208.03,208.02,71.5]
[1759301474686,18.402593,208.03,208.02,37.46]
[1759301474912,18.402593,208.03,208.02,71.5]
[1759301476189,19.40691614,208.03,208.02,37.46]
[1759301476408,20.82676749,208.03,208.02,71.5]
[1759301476693,19.40691614,208.03,208.02,71.5]
[1759301478124,20.82676749,208.03,208.02,71.5]
[1759301480906,19.40691614,208.03,208.02,71.5]
[1759301482713,18.68691614,208.03,208.02,71.5]
[1759301482919,19.35691614,208.03,208.02,71.5]
[1759301483801,20.77676749,208.03,208.02,71.5]
[1759301484607,20.77676749,208.03,208.02,37.46]
[1759301484808,204.37991715,208.02,207.93,0.1]
[1759301485110,204.37991715,208.02,207.97,37.48]
[1759301485111,15.2997685,207.98,207.97,37.48]
[1759301485319,13.87991715,207.98,207.97,66.86]
[1759301486125,14.56991715,207.98,207.97,66.86]
[1759301486832,19.37807178,207.98,207.97,66.86]
[1759301488225,18.68807178,207.98,207.97,66.86]
[1759301488827,18.40374864,207.98,207.97,66.86]
[1759301492127,19.09374864,207.98,207.97,71.54]
[1759301492434,18.40374864,207.98,207.97,71.54]
[1759301492938,13.59559401,207.98,207.97,71.54]
[1759301493347,18.40374864,207.98,207.97,71.54]
[1759301495346,61.80790132,208.0,207.97,71.54]
[1759301495546,61.80790132,208.0,207.98,0.25]
[1759301495547,57.0,208.0,207.98,0.25]
[1759301495715,70.59559401,208.0,207.99,34.06]
[1759301495915,4.80712039,208.03,207.99,34.06]
[1759301496353,4.80712039,208.03,208.0,0.25]
[1759301496658,13.59559401,208.03,208.01,34.06]
[1759301497517,13.59559401,208.03,207.98,0.25]
[1759301497716,13.59559401,208.03,207.99,34.06]
[1759301497956,13.59559401,208.03,208.0,0.25]
[1759301498258,13.59559401,208.03,208.01,34.06]
[1759301498417,4.80723007,208.02,208.01,34.06]
[1759301499726,18.40263323,208.03,208.01,34.06]
[1759301500134,0.5,208.05,208.01,34.31]
[1759301500335,13.59559401,208.04,208.01,34.06]
[1759301500628,4.80699899,208.03,208.01,34.06]
[1759301501423,13.59559401,208.04,208.02,0.25]
[1759301501626,5.30669881,208.05,208.03,34.29]
[1759301501627,0.5,208.05,208.03,34.29]
[1759301501841,0.5,208.05,208.04,34.04]
[1759301502354,5.30653689,208.05,208.04,34.04]
[1759301502554,0.5,208.05,208.04,34.04]
[1759301503731,5.30653689,208.05,208.04,34.04]
[1759301504050,5.30653689,208.05,207.99,4.80788678]
[1759301504252,5.30653689,208.05,207.99,0.25]
[1759301504457,5.30653689,208.05,208.0,34.04]
[1759301504955,5.30653689,208.05,208.01,0.25]
[1759301505149,5.30653689,208.05,208.02,34.04]
[1759301505952,13.59559401,208.04,207.97,37.73]
[1759301506261,14.28559401,208.04,207.98,34.04]
[1759301506760,4.80699899,208.03,207.98,34.04]
[1759301506947,4.80699899,208.03,207.98,34.29]
[1759301507441,5.49699899,208.03,207.98,34.29]
[1759301507950,4.80699899,208.03,207.97,42.28838527]
[1759301508160,13.59559401,208.01,207.98,34.04]
[1759301508452,0.69,208.0,207.98,34.04]
[1759301508756,13.59559401,207.99,207.98,34.04]
[1759301508934,19.09351746,207.99,207.97,37.48]
[1759301509135,18.40351746,207.99,207.98,34.04]
[1759301509641,19.09351746,207.99,207.98,34.04]
[1759301510457,4.80792345,207.99,207.98,34.04]
[1759301511167,0.5,208.05,207.98,39.09806812]
[1759301511372,13.59559401,208.06,207.99,0.25]
[1759301511663,4.80608172,208.07,208.0,34.04]
[1759301511845,4.80608172,208.07,208.01,0.25]
[1759301512044,4.80608172,208.07,208.02,34.04]
[1759301512233,4.80608172,208.07,208.03,0.25]
[1759301512428,26.29957577,208.1,208.04,34.04]
[1759301512640,0.28432314,208.12,208.05,0.25]
[1759301512641,4.80492023,208.12,208.05,0.25]
[1759301513039,4.80492023,208.12,208.06,4.80630587]
[1759301513040,13.59559401,208.12,208.06,4.80630587]
[1759301513262,13.59559401,208.12,208.07,34.04]
[1759301513433,13.59559401,208.12,208.07,34.29]
[1759301513635,4.80445853,208.14,208.08,0.25]
[1759301513852,0.66,208.18,208.08,0.25]
[1759301514042,0.5,208.12,208.08,0.25]
[1759301514248,13.59559401,208.17,208.08,0.25]
[1759301514835,14.25559401,208.17,208.08,0.25]
[1759301515258,4.80399692,208.16,208.09,4.80561295]
[1759301515462,4.80399692,208.16,208.1,34.04]
[1759301518460,5.46399692,208.16,208.1,34.04]
[1759301518773,0.66,208.22,208.11,0.25]
[1759301518946,0.66,208.22,208.13,20.8]
[1759301519151,5.46282674,208.22,208.15,4.80422772]
[1759301519351,5.46282674,208.22,208.16,37.48]
[1759301519947,17.46935829,208.22,208.16,37.48]
[1759301520472,0.28432314,208.2,208.17,34.04]
[1759301520646,0.28432314,208.2,208.18,34.02]
[1759301520647,14.53991715,208.19,208.18,34.02]
[1759301520970,14.53991715,208.19,208.16,37.48]
[1759301520971,0.28432314,208.18,208.16,37.48]
[1759301521189,0.94432314,208.18,208.17,34.02]
[1759301521471,5.08785854,208.18,208.17,34.02]
[1759301522276,5.74785854,208.18,208.17,34.02]
[1759301526980,18.39912941,208.18,208.17,34.02]
[1759301527148,4.8033332,208.19,208.17,34.02]
[1759301527349,14.25559401,208.18,208.16,37.48]
[1759301527675,13.59559401,208.18,208.17,34.02]
[1759301528045,14.25559401,208.18,208.17,34.02]
[1759301528359,19.05912941,208.18,208.17,34.02]
[1759301529170,13.59559401,208.17,208.16,37.48]
[1759301529375,71.25559401,208.17,208.16,71.5]
[1759301530253,71.25559401,208.17,208.06,0.25]
[1759301530254,0.14216157,208.16,208.06,0.25]
[1759301530454,13.59559401,208.12,208.07,37.46]
[1759301530768,13.59559401,208.1,208.08,34.02]
[1759301530968,0.28432314,208.11,208.08,34.02]
[1759301531285,13.59559401,208.1,208.08,34.02]
[1759301532092,0.66,208.11,208.08,34.02]
[1759301532570,4.80538202,208.1,208.08,34.02]
[1759301533550,16.81883708,208.1,208.07,37.46]
[1759301533751,14.25559401,208.09,208.08,34.02]
[1759301533968,13.59559401,208.09,208.08,34.02]
[1759301534177,16.81883708,208.1,208.08,34.02]
[1759301534879,12.01345506,208.1,208.08,34.02]
[1759301535581,14.25559401,208.09,208.07,37.46]
[1759301535781,13.59559401,208.09,208.08,34.02]
[1759301536474,14.25559401,208.09,208.07,37.46]
[1759301536680,0.94432314,208.08,208.07,37.46]
[1759301536876,0.94432314,208.08,208.07,71.48]
[1759301537080,4.80527578,208.11,208.07,71.48]
[1759301537258,13.59559401,208.09,208.07,71.48]
[1759301537658,14.25559401,208.09,208.07,71.48]
[1759301538070,13.59559401,208.09,208.07,71.48]
[1759301538271,4.80527578,208.11,208.07,71.73]
[1759301538782,4.80493734,208.12,208.08,0.25]
[1759301538986,4.80493734,208.12,208.09,34.06]
[1759301539192,12.01163449,208.14,208.09,34.06]
[1759301539481,12.70163449,208.14,208.09,34.06]
[1759301539661,12.01163449,208.14,208.09,34.31]
[1759301540470,12.01163449,208.14,208.09,34.06]
[1759301540669,12.01163449,208.14,208.09,34.31]
[1759301541389,12.01163449,208.14,208.09,0.25]
[1759301541679,12.01163449,208.14,208.1,34.04]
[1759301542084,12.01163449,208.14,208.09,0.25]
[1759301542263,12.01163449,208.14,208.1,34.02]
[1759301542460,12.01163449,208.14,208.07,37.46]
[1759301542781,2.50058943,208.11,208.08,34.02]
[1759301542969,13.59559401,208.09,208.08,34.02]
[1759301543171,14.56991715,208.09,208.08,34.02]
[1759301543371,19.3755301,208.09,208.08,34.02]
[1759301543571,19.3755301,208.09,208.07,37.46]
[1759301543774,0.93432314,208.08,208.07,37.46]
[1759301543968,0.93432314,208.08,208.07,71.52]
[1759301544375,14.52991715,208.08,208.07,71.52]
[1759301545071,14.52991715,208.08,208.07,37.46]
[1759301545270,14.52991715,208.08,208.07,71.5]
[1759301545582,19.33576105,208.08,208.07,71.5]
[1759301547093,33.76612253,208.08,208.07,71.5]
[1759301548611,0.28432314,208.06,207.96,20.8]
[1759301548778,16.09618344,208.06,208.05,37.48]
[1759301549098,13.87991715,208.06,208.05,71.5]
[1759301549306,28.31166699,208.06,208.05,71.5]
[1759301549476,28.96166699,208.06,208.05,71.5]
[1759301550073,14.52991715,208.06,208.05,71.5]
[1759301550292,19.33622302,208.06,208.05,71.5]
[1759301550590,33.76797286,208.06,208.05,71.5]
[1759301550990,18.68622302,208.06,208.05,71.5]
[1759301551384,18.40189988,208.06,208.05,71.5]
[1759301553486,13.59559401,208.06,208.05,71.75]
[1759301553689,4.80561295,208.09,208.05,71.75]
[1759301553888,13.59559401,208.08,208.05,71.5]
[1759301554199,14.24559401,208.07,208.06,34.04]
[1759301554572,13.59559401,208.07,208.06,34.04]
[1759301555277,18.40166888,208.07,208.06,34.04]
[1759301559304,13.59559401,208.06,208.05,37.48]
[1759301559496,0.65,208.06,208.05,71.52]
[1759301559873,0.65,208.06,208.05,37.48]
[1759301560081,0.28432314,208.04,207.96,0.25]
[1759301560276,13.59559401,208.02,207.97,34.04]
[1759301560799,0.65,208.02,207.97,34.04]
[1759301561109,13.59559401,208.02,207.97,34.29]
[1759301561403,14.24559401,208.02,207.97,34.04]
[1759301561600,0.65,208.01,207.97,34.04]
[1759301561902,13.59559401,208.02,207.97,38.84837227]
[1759301562103,4.80699899,208.03,207.98,0.25]
[1759301562410,4.80699899,208.03,207.99,34.29]
[1759301562574,4.80699899,208.03,208.0,34.04]
[1759301563288,13.59559401,208.03,208.0,34.04]
[1759301564206,14.24559401,208.03,208.0,34.04]
[1759301564386,13.59559401,208.03,208.0,34.04]
[1759301565199,4.80723007,208.02,208.0,34.04]
[1759301565702,4.80723007,208.02,208.01,34.04]
[1759301566010,4.80672293,208.05,208.01,34.04]
[1759301566187,4.80672293,208.05,208.02,0.25]
[1759301566994,13.59559401,208.08,208.01,34.04]
[1759301567199,13.59559401,208.08,208.02,0.25]
[1759301567396,30.41604767,208.08,208.02,0.25]
[1759301568494,30.41604767,208.08,208.03,34.04]
[1759301568718,0.65,208.07,207.96,20.8]
[1759301569015,13.59559401,208.05,207.97,55.09]
[1759301569720,4.80676792,208.04,207.98,0.25]
[1759301569908,4.80676792,208.04,207.99,37.48]
[1759301570223,4.80676792,208.04,208.0,34.04]
[1759301570422,5.45676792,208.04,208.0,34.04]
[1759301570825,4.80676792,208.04,208.0,34.04]
[1759301571321,13.59559401,208.05,208.0,34.04]
[1759301571498,4.80652689,208.06,208.01,0.25]
[1759301571704,18.40143791,208.08,208.02,0.25]
[1759301571912,30.41604767,208.08,208.03,34.04]
[1759301572113,0.65,208.07,208.03,34.04]
[1759301572313,0.65,208.06,208.03,34.04]
[1759301572722,0.65,208.06,208.0,0.25]
[1759301573024,0.65,208.05,208.01,34.04]
[1759301573225,13.59559401,208.06,208.01,34.04]
[1759301573399,14.25559401,208.06,208.01,34.04]
[1759301573908,4.80653689,208.05,208.01,34.04]
[1759301574420,5.46653689,208.05,208.01,34.04]
[1759301574797,4.80653689,208.05,208.01,34.04]
[1759301575414,5.46653689,208.05,208.02,37.48]
[1759301576024,4.80653689,208.05,208.02,37.48]
[1759301576723,4.80653689,208.05,208.02,37.73]
[1759301576912,4.80653689,208.05,208.02,37.48]
[1759301577324,18.40182617,208.07,208.02,37.48]
[1759301577549,57.0,208.09,208.03,0.25]
[1759301577718,61.80567,208.09,208.04,34.04]
[1759301578098,0.66,208.08,208.04,34.04]
[1759301579113,4.80607487,208.07,208.04,34.04]
[1759301579722,57.0,208.09,208.04,34.04]
[1759301579929,57.0,208.09,208.04,34.29]
[1759301580309,0.66,208.08,208.02,37.48]
[1759301580513,14.25559401,208.07,208.02,37.48]
[1759301580713,0.66,208.06,208.03,34.02]
[1759301580918,14.25559401,208.05,208.03,34.02]
[1759301581122,5.46676792,208.04,208.03,34.02]
[1759301581307,5.46676792,208.04,208.02,37.48]
[1759301581506,0.66,208.03,208.02,37.48]
[1759301581708,0.66,208.03,208.02,71.5]
[1759301583035,5.46699899,208.03,208.02,71.5]
[1759301583336,4.80681811,208.04,208.02,71.5]
[1759301584232,18.40213567,208.05,208.02,71.5]
[1759301584432,4.80654166,208.05,208.02,71.75]
[1759301584607,4.80618957,208.07,208.02,71.75]
[1759301585065,5.46618957,208.07,208.02,71.75]
[1759301585614,13.59559401,208.08,208.02,76.30709408]
[1759301585810,4.80563695,208.09,208.03,0.25]
[1759301586130,4.80542516,208.1,208.04,34.04]
[1759301586334,4.80542516,208.1,208.04,34.29]
[1759301587135,4.80542516,208.1,208.04,39.09661371]
[1759301587909,4.805066,208.12,208.05,0.25]
[1759301588137,4.80467544,208.14,208.05,0.25]
[1759301589132,5.46427906,208.15,208.06,16.82207055]
[1759301589321,5.46427906,208.15,208.07,34.27]
[1759301589530,5.46427906,208.15,208.07,34.02]
[1759301589732,5.46427906,208.15,208.08,0.25]
[1759301590110,4.80427906,208.15,208.09,4.80561295]
[1759301590333,4.80399866,208.16,208.1,34.02]
[1759301590532,24.21063389,208.25,208.11,0.25]
[1759301590834,0.66,208.19,208.11,0.25]
[1759301591015,0.66,208.21,208.11,0.25]
[1759301591611,4.80307396,208.2,208.12,4.80492023]
[1759301591830,0.66,208.19,208.12,4.80492023]
[1759301592241,0.66,208.18,208.09,20.8]
[1759301592413,0.66,208.17,208.1,34.02]
[1759301592813,0.66,208.16,208.1,34.02]
[1759301594144,4.80422772,208.15,208.1,34.02]
[1759301594312,5.46422772,208.15,208.1,34.02]
[1759301598240,4.80422772,208.15,208.07,4.80594176]
[1759301598447,0.66,208.14,208.08,34.02]
[1759301599131,16.81479702,208.15,208.08,34.27]
[1759301599328,4.80422772,208.15,208.08,34.27]
[1759301599529,4.80422772,208.15,208.09,0.25]
[1759301600030,4.80399048,208.17,208.09,0.25]
[1759301600744,16.81277165,208.18,208.1,4.80538202]
[1759301601047,0.66,208.17,208.09,5.05559566]
[1759301603047,4.80399692,208.16,208.09,5.05559566]
[1759301603628,0.71,208.15,208.08,38.82583785]
[1759301603827,0.71,208.15,208.07,0.25]
[1759301603828,0.71,208.15,208.09,34.02]
[1759301604161,0.71,208.15,208.1,37.46]
[1759301604625,0.71,208.14,208.1,37.46]
[1759301604826,16.81398923,208.16,208.1,37.46]
[1759301605027,4.80445853,208.14,208.1,37.46]
[1759301605639,5.51445853,208.14,208.1,37.46]
[1759301606050,0.71,208.13,208.1,37.46]
[1759301606935,5.51424189,208.15,208.11,34.02]
[1759301607238,0.71,208.14,208.11,34.02]
[1759301609137,4.80468937,208.13,208.11,34.02]
[1759301610062,14.30559401,208.17,208.11,34.27]
[1759301610240,14.30559401,208.17,208.11,34.02]
[1759301610439,71.30559401,208.17,208.11,34.02]
[1759301610655,71.30559401,208.17,208.11,34.27]
[1759301611124,4.80399692,208.16,208.11,34.02]
[1759301611324,5.51399692,208.16,208.11,34.02]
[1759301613059,5.51399692,208.16,208.1,42.26537092]
[1759301613260,5.51399692,208.16,208.11,34.0]
[1759301613562,4.80399692,208.16,208.11,34.25]
[1759301613735,4.80399692,208.16,208.12,0.25]
[1759301614155,61.80381321,208.17,208.11,38.80493875]
[1759301614537,61.80381321,208.17,208.12,0.25]
[1759301614837,61.80381321,208.17,208.11,38.80493875]
[1759301614838,4.80350366,208.19,208.13,0.25]
[1759301615045,4.80350366,208.19,208.14,34.0]
[1759301615244,4.80350366,208.19,208.14,34.25]
[1759301615447,5.51350366,208.19,208.14,34.0]
[1759301615647,0.71,208.18,208.14,34.0]
[1759301615847,4.80376615,208.17,208.14,34.0]
[1759301616050,5.5135755,208.18,208.14,34.0]
[1759301616257,0.71,208.18,208.14,34.0]
[1759301616566,4.8033486,208.19,208.15,0.25]
[1759301616748,4.8033486,208.19,208.14,34.0]
[1759301616938,4.8033486,208.19,208.14,34.25]
[1759301617141,4.8033486,208.19,208.14,39.05438543]
[1759301617643,5.5133486,208.19,208.14,39.05438543]
[1759301617843,25.60310552,208.2,208.15,0.25]
[1759301618764,21.51,208.21,208.15,0.25]
[1759301618961,21.51,208.21,208.14,38.80438543]
[1759301619151,25.60294506,208.21,208.14,38.80438543]
[1759301619351,0.71,208.2,208.14,38.80438543]
[1759301619962,5.51326315,208.2,208.14,38.80438543]
[1759301620264,0.71,208.2,208.14,39.05438543]
[1759301620464,0.71,208.19,208.12,4.80476972]
[1759301620662,0.71,208.18,208.13,34.0]
[1759301620868,0.71,208.17,208.13,34.0]
[1759301621667,4.8035354,208.18,208.13,38.80459886]
[1759301621864,5.5135354,208.18,208.13,39.05459886]
[1759301623066,5.5135354,208.18,208.13,34.25]
[1759301623242,5.5135354,208.18,208.13,34.0]
[1759301623445,5.5135354,208.18,208.13,34.25]
[1759301623865,0.71,208.18,208.13,39.05457747]
[1759301624074,4.80335626,208.19,208.13,39.05457747]
[1759301624459,5.51335626,208.19,208.13,39.05457747]
[1759301625274,4.80284328,208.21,208.13,38.80457747]
[1759301625469,4.80284328,208.21,208.14,0.25]
[1759301625676,82.60262757,208.22,208.14,0.25]
[1759301626049,20.8,208.22,208.14,0.25]
[1759301626369,21.51,208.24,208.14,0.25]
[1759301626675,0.71,208.24,208.14,0.25]
[1759301627170,0.71,208.24,208.15,16.81479702]
[1759301627367,0.71,208.23,208.16,0.25]
[1759301627574,0.71,208.23,208.17,34.0]
[1759301628166,0.71,208.23,208.16,0.25]
[1759301628365,0.71,208.23,208.17,34.0]
[1759301629168,4.80261262,208.22,208.17,34.0]
[1759301629376,4.80261262,208.22,208.17,34.25]
[1759301629576,5.51261262,208.22,208.17,34.25]
[1759301629875,12.0053784,208.24,208.18,34.0]
[1759301629876,4.80236632,208.24,208.18,34.0]
[1759301630103,0.71,208.23,208.18,34.0]
[1759301630379,0.71,208.23,208.18,34.25]
[1759301630676,0.71,208.23,208.18,34.0]
[1759301630852,0.71,208.23,208.18,38.80343091]
[1759301631058,5.51243444,208.23,208.18,38.80343091]
[1759301633475,4.80215136,208.24,208.18,38.80343091]
[1759301633796,21.0,208.25,208.18,38.80343091]
[1759301633956,21.0,208.25,208.19,0.25]
[1759301635268,26.471968,208.25,208.19,5.05309657]
[1759301635469,26.471968,208.25,208.19,0.25]
[1759301635778,26.471968,208.25,208.18,34.0]
[1759301636078,0.67,208.24,208.19,33.98]
[1759301636262,0.67,208.24,208.15,0.25]
[1759301636263,0.67,208.23,208.2,33.98]
[1759301636685,0.67,208.23,208.16,20.8]
[1759301636987,0.67,208.22,208.17,33.98]
[1759301637170,0.67,208.21,208.17,33.98]
[1759301637372,0.67,208.2,208.17,33.98]
[1759301637770,0.67,208.2,208.19,20.8]
[1759301638187,16.80833693,208.23,208.19,20.8]
[1759301638388,0.67,208.22,208.19,20.8]
[1759301638963,0.67,208.22,208.2,20.8]
[1759301639162,0.67,208.22,208.21,33.98]
[1759301639391,4.80238198,208.23,208.21,33.98]
[1759301639568,5.47238198,208.23,208.21,33.98]
[1759301640386,0.67,208.22,208.21,33.98]
[1759301641512,5.47261262,208.22,208.21,33.98]
[1759301642700,5.47261262,208.22,208.21,71.42]
[1759301644489,19.06789544,208.24,208.21,71.42]
[1759301644699,0.67,208.23,208.21,71.42]
[1759301645375,62.67193939,208.25,208.21,71.42]
[1759301645695,0.2,208.25,208.24,20.8]
[1759301645875,0.2,208.25,208.24,54.78]
[1759301646595,0.2,208.25,208.24,55.03]
[1759301647502,0.2,208.25,208.24,59.83215136]
[1759301650789,0.2,208.25,208.24,54.78]
[1759301650975,0.2,208.25,208.24,54.76]
[1759301652071,0.2,208.25,208.24,55.01]
[1759301652273,0.2,208.25,208.24,59.81215136]
[1759301654893,0.2,208.25,208.24,25.60215136]
[1759301655079,0.2,208.25,208.24,59.56215136]
[1759301655684,0.2,208.25,208.24,61.7333348]
[1759301658878,0.2,208.25,208.24,67.55391587]
[1759301659877,0.2,208.25,208.24,67.83823901]
[1759301660199,0.2,208.25,208.24,82.24823901]
[1759301661499,0.2,208.25,208.24,47.75391587]
[1759301661805,0.2,208.25,208.24,81.71391587]
[1759301663102,0.2,208.25,208.24,48.00391587]
[1759301663284,0.2,208.25,208.24,81.71391587]
[1759301665002,0.2,208.25,208.24,47.75391587]
[1759301665305,0.2,208.25,208.24,67.28391587]
[1759301665599,0.92,208.25,208.24,28.54176451]
[1759301665904,0.92,208.25,208.24,33.94]
[1759301667017,0.92,208.25,208.24,38.74215136]
[1759301668117,0.92,208.25,208.24,33.94]
[1759301668603,0.92,208.25,208.24,20.8]
[1759301668817,0.92,208.25,208.24,54.74]
[1759301669309,0.92,208.25,208.21,37.44]
[1759301669310,5.72192076,208.25,208.21,37.44]
[1759301669478,0.72,208.24,208.22,33.94]
[1759301669786,0.72,208.23,208.22,33.94]
[1759301672090,5.52238198,208.23,208.22,33.94]
[1759301672494,0.72,208.23,208.22,33.94]
[1759301672815,0.72,208.23,208.21,58.24]